[Event "Icelandic Open 2019"]
[Site "Akureyri"]
[Date "2019.06.01"]
[Round "9.14"]
[White "Ptacnikova, Lenka"]
[Black "Halldorsson, Hjorleifur"]
[Result "1-0"]
[ECO "A20"]
[WhiteElo "2145"]
[BlackElo "1779"]
[Annotator "ChessBase"]
[PlyCount "107"]
[EventDate "2019.05.25"]
[EventType "swiss"]
[EventCountry "ISL"]
[SourceTitle "playchess.com"]
[Source "ChessBase"]
[SourceQuality "1"]
[TimeControl "40/5400+30:1800+30"]

1. c4 {[%emt 0:00:00]} Nf6 {[%emt 0:00:51]} 2. g3 {[%emt 0:00:14]} e5 {[%emt 0:03:24]} 3. Bg2 {[%emt 0:00:11]} d5 {[%emt 0:00:23]} 4. cxd5 {[%emt 0:00:06]} Nxd5 {[%emt 0:00:06]} 5. Nf3 {[%emt 0:00:11]} Nc6 {[%emt 0:00:41]} 6. O-O {[%emt 0:00:30]} Be7 {[%emt 0:00:48]} 7. d4 {[%emt 0:00:29]} exd4 {[%emt 0:09:23]} 8. Nxd4 {[%emt 0:00:13]} Nxd4 {[%emt 0:00:30]} 9. Qxd4 {[%emt 0:00:06]} Nf6 {[%emt 0:00:31]} 10. Qa4+ {[%emt 0:01:02]} c6 {[%emt 0:08:10]} 11. Nc3 {[%emt 0:02:37]} O-O {[%emt 0:04:19]} 12. e4 {[%emt 0:05:30]} Qc7 {[%emt 0:11:34]} 13. Qc2 {[%emt 0:02:23]} Be6 {[%emt 0:02:14]} 14. Nd5 {[%emt 0:20:58]} Nxd5 {[%emt 0:11:59]} 15. exd5 {[%emt 0:00:29]} Bd7 {[%emt 0:00:05]} 16. Bf4 {[%emt 0:08:15]} Bd6 {[%emt 0:01:31]} 17. Bxd6 {[%emt 0:00:47]} Qxd6 {[%emt 0:00:08]} 18. dxc6 {[%emt 0:00:16]} Bxc6 {[%emt 0:01:02]} 19. Rfd1 {[%emt 0:00:35]} Qf6 {[%emt 0:02:03]} 20. Bxc6 {[%emt 0:03:04]} Rac8 {[%emt 0:01:55]} 21. Qb3 {[%emt 0:00:34]} Qxc6 {[%emt 0:01:57]} 22. Rd3 {[%emt 0:00:32]} Rfd8 {[%emt 0:07:34]} 23. Rc3 {[%emt 0:00:34]} Qe4 {[%emt 0:00:38]} 24. Rd1 {[%emt 0:03:06]} h6 {[%emt 0:01:57]} 25. Rxd8+ {[%emt 0:03:44]} Rxd8 {[%emt 0:00:30]} 26. Rc7 {[%emt 0:03:20]} Qe1+ {[%emt 0:11:36]} 27. Kg2 {[%emt 0:00:04]} Qe4+ {[%emt 0:00:31]} 28. Qf3 {[%emt 0:00:23]} Qe6 {[%emt 0:00:52]} 29. Rxb7 {[%emt 0:06:21]} Qxa2 {[%emt 0:01:21]} 30. b3 {[%emt 0:00:16]} Rf8 {[%emt 0:00:14]} 31. Qd5 {[%emt 0:02:51]} Qa6 {[%emt 0:02:15]} 32. h4 {[%emt 0:03:10]} Qa2 {[%emt 0:00:00]} 33. Qc5 {[%emt 0:06:12]} a6 {[%emt 0:00:53]} 34. Qd5 {[%emt 0:02:55]} Qc2 {[%emt 0:03:05]} 35. h5 {[%emt 0:08:25]} Qa2 {[%emt 0:01:16]} 36. Qc4 {[%emt 0:03:08]} Qa5 {[%emt 0:02:42]} 37. g4 {[%emt 0:00:22]} Qg5 {[%emt 0:03:51]} 38. Ra7 {[%emt 0:01:29]} a5 {[%emt 0:01:06]} 39. Rd7 {[%emt 0:05:51]} Kh8 {[%emt 0:04:19]} 40. Rd5 {[%emt 0:04:21]} f5 {[%emt 0:00:00]} 41. Rxf5 {[%emt 0:06:56]} Rxf5 {[%emt 0:01:00]} 42. Qc8+ {[%emt 0:00:07]} Kh7 {[%emt 0:01:25]} 43. Qxf5+ {[%emt 0:00:10]} Qxf5 {[%emt 0:00:12]} 44. gxf5 {[%emt 0:00:02]} Kg8 {[%emt 0:00:34]} 45. Kf3 {[%emt 0:00:27]} Kf7 {[%emt 0:00:34]} 46. Ke4 {[%emt 0:00:11]} Kf6 {[%emt 0:01:27]} 47. Kf4 {[%emt 0:00:05]} Kf7 {[%emt 0:00:38]} 48. Ke5 {[%emt 0:00:04]} Ke7 {[%emt 0:00:12]} 49. f6+ {[%emt 0:03:44]} gxf6+ {[%emt 0:01:41]} 50. Kf5 {[%emt 0:00:19]} Kf7 {[%emt 0:02:23]} 51. f3 {[%emt 0:00:31]} Ke7 {[%emt 0:00:44]} 52. Kg6 {[%emt 0:00:13]} Ke6 {[%emt 0:00:55]} 53. Kxh6 {[%emt 0:04:38]} Kf7 {[%emt 0:00:54]} 54. f4 {[%emt 0:00:11]} 1-0

[Event "Icelandic Open 2019"]
[Site "Akureyri"]
[Date "2019.06.01"]
[Round "9.15"]
[White "Pinto, Mark"]
[Black "Leosson, Atli Johann"]
[Result "1-0"]
[ECO "D00"]
[WhiteElo "2082"]
[BlackElo "1790"]
[Annotator "NA"]
[PlyCount "101"]
[EventDate "2019.05.25"]
[EventType "swiss"]
[EventCountry "ISL"]
[SourceTitle "playchess.com"]
[Source "ChessBase"]
[SourceQuality "1"]
[TimeControl "40/5400+30:1800+30"]

1. d4 {[%emt 0:00:00]} d5 {[%emt 0:00:00]} 2. Bf4 {[%emt 0:00:00]} c5 {[%emt 0:00:04]} 3. e3 {[%emt 0:00:00]} Nf6 {[%emt 0:00:24]} 4. c3 {[%emt 0:00:00]} Nc6 {[%emt 0:01:07]} 5. Nd2 {[%emt 0:00:06]} Bf5 {[%emt 0:00:38]} (5... Qb6 6. Qb3 Nh5 7. Qxb6 axb6 8. Bc7 cxd4 9. exd4 e5 10. Bxe5 Nxe5 11. dxe5 Bc5 12. g3 O-O {1-0 (76) Aronian,L (2765)-Caruana,F (2832) London 2018}) 6. Ngf3 {[%emt 0:00:19] D00: 1 d4 d5: Unusual lines} Qb6 {[%emt 0:00:29]} 7. Nh4 {[%emt 0:00:14]} Bg6 {[%emt 0:01:53]} 8. Nxg6 {[%emt 0:00:07]} hxg6 {[%emt 0:00:14]} 9. Qb3 {[%emt 0:00:31]} c4 $146 {[%emt 0:01:03]} ({Predecessor:} 9... e6 10. h3 Be7 11. Be2 O-O 12. Rb1 Rac8 {0-1 (31) Mackle,D (2021)-Shaw,P (2173) Canterbury 2010}) 10. Qc2 {[%emt 0:00:34]} Nh5 {[%emt 0:02:04]} 11. Be5 {[%emt 0:00:47]} Nf6 {[%emt 0:06:14]} 12. Bg3 {[%emt 0:02:30]} Nh5 {[%emt 0:02:55]} 13. Be5 {[%emt 0:04:11]} Nf6 {[%emt 0:00:18]} 14. Nf3 {[%emt 0:00:39]} e6 {[%emt 0:06:56]} 15. h3 {[%emt 0:00:43]} Ne4 {[%emt 0:03:55]} 16. Be2 {[%emt 0:02:16]} f6 {[%emt 0:00:37]} 17. Bh2 {[%emt 0:00:05]} Kf7 {[%emt 0:06:28]} 18. O-O {[%emt 0:00:18]} Bd6 {[%emt 0:00:36]} 19. Bxc4 {[%emt 0:11:21]} Bxh2+ {[%emt 0:03:14]} 20. Nxh2 {[%emt 0:00:41]} Ng5 {[%emt 0:04:22]} 21. Bd3 {[%emt 0:00:25]} f5 {[%emt 0:06:22]} 22. f4 {[%emt 0:00:24]} Nxh3+ {[%emt 0:01:36]} 23. gxh3 {[%emt 0:00:05]} Rxh3 {[%emt 0:00:20]} 24. Rf3 {[%emt 0:00:10]} Rh6 {[%emt 0:01:38]} 25. Raf1 {[%emt 0:02:38]} Rah8 {[%emt 0:00:13]} 26. R1f2 {[%emt 0:00:31]} Qd8 {[%emt 0:00:49]} 27. Rg2 {[%emt 0:01:25]} Qh4 {[%emt 0:02:35]} 28. Qf2 {[%emt 0:00:06]} Qd8 {[%emt 0:01:33]} 29. Qg3 {[%emt 0:02:52]} Qa5 {[%emt 0:03:46]} 30. a3 {[%emt 0:00:34]} Ne7 {[%emt 0:02:22]} 31. Qe1 {[%emt 0:02:28]} Ng8 {[%emt 0:01:34]} 32. Rf1 {[%emt 0:02:28]} Nf6 {[%emt 0:04:33]} 33. Qg3 {[%emt 0:03:12]} Qb6 {[%emt 0:03:47]} 34. Rb1 {[%emt 0:05:13]} a6 {[%emt 0:07:18]} 35. b4 {[%emt 0:02:54]} Qc6 {[%emt 0:01:20]} 36. Rb3 {[%emt 0:03:25]} Qa4 {[%emt 0:02:02]} 37. Bc2 {[%emt 0:05:53]} Qb5 $14 {[%emt 0:00:16]} 38. Rb1 {[%emt 0:05:44]} Qc4 {[%emt 0:00:58]} 39. Qe1 {[%emt 0:04:15]} Qc8 {[%emt 0:06:37]} 40. Qe2 {[%emt 0:00:00]} Qxc3 {[%emt 0:00:00]} 41. b5 {[%emt 0:03:05]} a5 {[%emt 0:09:53]} 42. Qd3 {[%emt 0:03:17]} Qc8 {[%emt 0:01:38]} 43. Qd2 {[%emt 0:01:14]} b6 {[%emt 0:01:07]} 44. Rc1 {[%emt 0:00:33]} Qb8 {[%emt 0:05:27]} 45. Bd3 {[%emt 0:00:45]} Ne8 {[%emt 0:10:05]} 46. Rc6 {[%emt 0:00:32]} Qd8 {[%emt 0:00:45]} 47. Nf3 {[%emt 0:00:30]} Rh1+ {[%emt 0:01:13]} 48. Kf2 {[%emt 0:00:28]} Nd6 {[%emt 0:05:13]} 49. Qc3 {[%emt 0:00:29]} Rd1 {[%emt 0:00:48]} 50. Ng5+ {[%emt 0:07:52]} Kg8 {[%emt 0:03:33]} 51. Rxd6 {[%emt 0:01:11]} 1-0